bitfinex-derivatives/quotes_BTCF0:USTF0_20241214
["timestamp","ask_amount","ask_price","bid_price","bid_amount"]
[1734177656182,0.081482,101660.0,101650.0,0.94160995]
[1734177657882,0.081482,101660.0,101650.0,2.44160995]
[1734177658682,0.081482,101660.0,101650.0,1.00285175]
[1734177658980,0.0323,101660.0,101650.0,1.00285175]
[1734177659184,0.0323,101660.0,101650.0,2.50285175]
[1734177663689,0.0323,101660.0,101650.0,2.44160995]
[1734177664184,0.081481,101660.0,101650.0,2.44160995]
[1734177664778,0.081981,101660.0,101650.0,2.44160995]
[1734177664981,0.081981,101660.0,101650.0,2.08080995]
[1734177665186,0.081981,101660.0,101650.0,2.80240995]
[1734177665886,0.081981,101660.0,101650.0,1.30240995]
[1734177666985,0.081981,101660.0,101650.0,0.94160995]
[1734177668694,0.1432228,101660.0,101650.0,0.83118315]
[1734177668891,0.049185,101650.0,101640.0,2.45140626]
[1734177669081,0.114985,101650.0,101640.0,2.45140626]
[1734177671905,0.5370268,101650.0,101640.0,1.97038315]
[1734177672114,0.5370268,101650.0,101640.0,1.5]
[1734177672407,0.62500567,101650.0,101640.0,1.5]
[1734177673511,0.62500567,101650.0,101640.0,1.5612418]
[1734177674609,0.62500567,101650.0,101640.0,1.5]
[1734177675207,0.74231083,101650.0,101640.0,1.5]
[1734177676713,0.68106903,101650.0,101640.0,1.5612418]
[1734177677316,0.59309016,101650.0,101640.0,1.5612418]
[1734177678615,0.59309016,101650.0,101640.0,1.5]
[1734177680816,0.23229016,101650.0,101640.0,1.5]
[1734177681115,0.62241645,101650.0,101640.0,1.5]
[1734177681609,0.68365825,101650.0,101640.0,1.5]
[1734177683112,0.62241645,101650.0,101640.0,1.5]
[1734177683509,0.475785,101650.0,101640.0,1.5612418]
[1734177683710,0.475785,101650.0,101640.0,0.0612418]
[1734177683911,0.114985,101650.0,101640.0,1.00285675]
[1734177684115,0.081685,101650.0,101640.0,2.50285675]
[1734177684323,0.049185,101650.0,101640.0,2.50285675]
[1734177684620,0.049185,101650.0,101640.0,2.53395675]
[1734177686412,0.13745316,101650.0,101640.0,2.94320151]
[1734177687719,0.13745316,101650.0,101640.0,2.2845273]
[1734177687920,0.13745316,101650.0,101640.0,2.4070109]
[1734177688117,0.13745316,101650.0,101640.0,2.7678109]
[1734177688324,0.13745316,101650.0,101640.0,2.6754691]
[1734177688514,0.16795316,101650.0,101640.0,0.8146691]
[1734177688916,0.16795316,101650.0,101640.0,1.1754691]
[1734177689424,0.16795316,101650.0,101640.0,0.8146691]
[1734177689724,0.16795316,101650.0,101640.0,1.1754691]
[1734177690624,0.16795316,101650.0,101640.0,0.8146691]
[1734177690818,0.16795316,101650.0,101640.0,1.1754691]
[1734177691526,0.16795316,101650.0,101640.0,1.35150791]
[1734177693318,0.16795316,101650.0,101640.0,1.39455857]
[1734177693620,0.16795316,101650.0,101640.0,0.45294362]
[1734177693925,0.25949496,101650.0,101640.0,0.40989296]
[1734177694130,0.1712268,101650.0,101640.0,0.40989296]
[1734177695519,0.5320268,101650.0,101640.0,0.40989296]
[1734177695921,0.1712268,101650.0,101640.0,0.40989296]
[1734177697225,0.18131228,101650.0,101640.0,0.40989296]
[1734177697919,0.079685,101650.0,101640.0,0.65589595]
[1734177698326,0.16705109,101650.0,101640.0,0.71713775]
[1734177698522,0.16705109,101650.0,101640.0,0.74763775]
[1734177699021,0.16705109,101650.0,101640.0,2.24763775]
[1734177699925,0.16705109,101650.0,101640.0,2.29682775]
[1734177700731,0.16705109,101650.0,101640.0,2.53335675]
[1734177701226,0.16705109,101650.0,101640.0,2.57641029]
[1734177703424,0.25546748,101650.0,101640.0,3.36555039]
[1734177704025,0.1794136,101660.0,101640.0,3.35682644]
[1734177704026,0.20628022,101660.0,101640.0,3.35682644]
[1734177704225,0.08841413,101660.0,101650.0,0.85922843]
[1734177704434,0.08841413,101660.0,101650.0,1.52406089]
[1734177704625,0.16754309,101670.0,101660.0,0.049181]
[1734177704626,0.25595722,101670.0,101660.0,0.049181]
[1734177704825,0.25545722,101670.0,101660.0,0.94337585]
[1734177705027,0.16704309,101670.0,101660.0,0.94337585]
[1734177705227,0.16704309,101670.0,101660.0,0.91377355]
[1734177705626,0.25538603,101670.0,101660.0,0.91377355]
[1734177705833,0.16704309,101670.0,101660.0,0.77171125]
[1734177706332,0.20024309,101670.0,101660.0,0.77171125]
[1734177706520,0.28857111,101670.0,101660.0,0.77171125]
[1734177707530,0.28857111,101670.0,101660.0,0.53690482]
[1734177708938,0.28857111,101670.0,101660.0,0.17610482]
[1734177709141,0.28857111,101670.0,101660.0,0.53690482]
[1734177709632,0.28857111,101670.0,101660.0,0.17610482]
[1734177709837,0.28857111,101670.0,101660.0,0.53690482]
[1734177710032,0.2885456,101670.0,101660.0,0.53690482]
[1734177712541,0.23234309,101670.0,101660.0,0.53690482]
[1734177712743,0.32064733,101670.0,101660.0,0.53690482]
[1734177712934,0.32064733,101670.0,101660.0,0.17610482]
[1734177713241,0.23234309,101670.0,101660.0,0.17610482]
[1734177716244,0.59314309,101670.0,101660.0,0.17610482]
[1734177716442,0.74025669,101670.0,101660.0,0.17610482]
[1734177716742,0.23234309,101670.0,101660.0,0.17610482]
[1734177720541,0.049181,101660.0,101650.0,1.2912764]
[1734177720743,0.17029684,101660.0,101650.0,1.33432311]
[1734177722046,0.17029684,101660.0,101650.0,1.2912764]
[1734177722247,0.17029684,101660.0,101650.0,1.29120863]
[1734177722447,0.17029684,101660.0,101650.0,1.29120712]
[1734177722844,0.28816293,101660.0,101650.0,1.29120712]
[1734177723041,0.17029684,101660.0,101650.0,1.11517158]
[1734177723544,0.28816293,101660.0,101650.0,1.29122342]
[1734177724546,0.28816293,101660.0,101650.0,0.81471973]
[1734177725143,0.28816293,101660.0,101650.0,0.87569662]
[1734177725545,0.28816293,101660.0,101650.0,0.51489662]
[1734177725843,0.19984709,101660.0,101650.0,0.51489662]
[1734177726044,0.19984709,101660.0,101650.0,0.47184989]
[1734177728751,0.34696069,101660.0,101650.0,0.29578332]
[1734177729150,0.19984709,101660.0,101650.0,0.29578332]
[1734177729445,0.34696069,101660.0,101650.0,0.29578332]
[1734177730045,0.35697662,101660.0,101650.0,0.29578332]
[1734177735450,0.23911053,101660.0,101650.0,0.29578332]
[1734177737060,0.23911053,101660.0,101650.0,0.23480643]
[1734177737256,0.35704811,101660.0,101650.0,0.29578332]
[1734177738462,0.34703218,101660.0,101650.0,0.29578332]
[1734177738755,0.34703407,101660.0,101650.0,1.26152557]
[1734177739060,0.19992047,101660.0,101650.0,1.26152557]
[1734177739663,0.19992047,101660.0,101650.0,1.02671914]
[1734177739962,0.19992047,101660.0,101650.0,1.49710229]
[1734177744062,0.19992047,101660.0,101650.0,1.54014685]
[1734177748254,0.19992047,101660.0,101650.0,1.17934685]
[1734177748458,0.19992047,101660.0,101650.0,1.54014685]
[1734177749057,0.19992047,101660.0,101650.0,1.49710229]
[1734177749256,0.19992047,101660.0,101650.0,1.13630229]
[1734177749458,0.19992047,101660.0,101650.0,1.49710229]
[1734177750053,0.19992047,101660.0,101650.0,1.13630229]
[1734177750260,0.19992047,101660.0,101650.0,1.49710229]
[1734177752767,0.19992047,101660.0,101650.0,1.47916958]
[1734177752964,0.19992047,101660.0,101650.0,1.54014647]
[1734177753364,0.19992047,101660.0,101650.0,1.5400764]
[1734177755270,0.19992047,101660.0,101650.0,1.1792764]
[1734177755466,0.28838968,101660.0,101650.0,1.89204729]
[1734177755666,0.28838968,101660.0,101650.0,1.1792764]
[1734177755667,0.34703407,101660.0,101650.0,1.1792764]
[1734177755868,0.40801096,101660.0,101650.0,0.83401646]
[1734177756171,0.29007149,101660.0,101650.0,0.27832928]
[1734177758169,0.29007149,101660.0,101650.0,0.33930617]
[1734177759857,0.29007149,101660.0,101650.0,0.27832928]
[1734177760067,0.29007149,101660.0,101650.0,0.4548099]
[1734177760270,0.29007149,101660.0,101650.0,0.51578679]
[1734177760466,0.29007149,101660.0,101650.0,0.4548099]
[1734177760866,0.29007149,101660.0,101650.0,0.51578679]
[1734177761862,0.29007149,101660.0,101650.0,0.33930617]
[1734177764775,0.46602923,101660.0,101650.0,0.51577207]
[1734177765065,0.29007149,101660.0,101650.0,0.51577207]
[1734177766372,0.71184838,101660.0,101650.0,0.45479518]
[1734177766568,0.74069252,101660.0,101650.0,0.21951846]
[1734177766772,0.74069252,101660.0,101650.0,0.1764659]
[1734177766973,0.049185,101650.0,101640.0,0.411751]
[1734177767276,0.3199066,101650.0,101640.0,0.51578153]
[1734177768572,0.43781011,101650.0,101640.0,0.51578153]
[1734177769274,0.3199066,101650.0,101640.0,0.47272789]
[1734177769581,0.43780721,101650.0,101640.0,0.47272789]
[1734177774582,0.43780721,101650.0,101640.0,0.23744279]
[1734177774973,0.43780721,101650.0,101640.0,1.73744279]
[1734177775676,0.4477586,101650.0,101640.0,1.73744279]
[1734177776477,0.4477586,101650.0,101640.0,1.78049641]
[1734177776873,0.30031389,101650.0,101640.0,2.01578151]
[1734177777373,0.4477586,101650.0,101640.0,1.78049641]
[1734177778084,0.30031389,101650.0,101640.0,2.01578151]
[1734177778279,0.4477586,101650.0,101640.0,1.78049641]
[1734177780079,0.4477586,101650.0,101640.0,1.73744279]
[1734177780585,0.4477586,101650.0,101640.0,1.97272789]
[1734177781374,0.38678171,101650.0,101640.0,2.33352789]
[1734177781684,0.16708561,101650.0,101640.0,2.48674558]
[1734177781989,0.16708561,101650.0,101640.0,2.51924558]
[1734177782288,0.25546323,101650.0,101640.0,2.98962873]
[1734177782486,0.25546323,101650.0,101640.0,2.81316283]
[1734177782679,0.25546323,101650.0,101640.0,3.10682266]
[1734177782979,0.25546323,101650.0,101640.0,3.36864324]
[1734177783184,0.13756262,101650.0,101640.0,3.36849189]
[1734177783576,0.13756262,101650.0,101640.0,3.13335814]
[1734177784485,0.25546323,101650.0,101640.0,3.13335814]
[1734177784690,0.25546323,101650.0,101640.0,3.49415814]
[1734177785975,0.25546323,101650.0,101640.0,3.23233756]
[1734177786190,0.25546323,101650.0,101640.0,3.4942271]
[1734177788992,0.25546323,101650.0,101640.0,3.72951333]
[1734177789689,0.25546323,101650.0,101640.0,3.72952919]
[1734177790392,0.25546323,101650.0,101640.0,3.4942271]
[1734177791296,0.25546323,101650.0,101640.0,3.72953762]
[1734177792094,0.25546323,101650.0,101640.0,3.4942271]
[1734177792684,0.25546323,101650.0,101640.0,3.72957485]
[1734177793182,0.25546323,101650.0,101640.0,3.4942271]
[1734177795602,0.16708561,101650.0,101640.0,3.1334271]
[1734177797387,0.16708561,101650.0,101640.0,3.4942271]
[1734177797593,0.25554243,101650.0,101640.0,3.4942271]
[1734177797896,0.25554228,101650.0,101640.0,3.4942271]
[1734177798101,0.25554228,101650.0,101640.0,3.84619799]
[1734177799193,0.25554228,101650.0,101640.0,3.1334271]
[1734177799593,0.16708561,101650.0,101640.0,3.1334271]
[1734177802692,0.25554968,101650.0,101640.0,3.1334271]
[1734177803893,0.16708561,101650.0,101640.0,3.0903763]
[1734177804193,0.16708561,101650.0,101640.0,3.09048994]
[1734177808597,0.16708561,101650.0,101640.0,2.82848676]
[1734177808806,0.16708561,101650.0,101640.0,3.09055812]
[1734177809395,0.16708561,101650.0,101640.0,3.05805812]
[1734177810692,0.16708561,101650.0,101640.0,1.43610434]
[1734177811004,0.23068561,101650.0,101640.0,1.49708123]
[1734177811203,0.23068561,101650.0,101640.0,2.99708123]
[1734177811403,0.112785,101650.0,101640.0,2.99708123]
[1734177811602,0.23081659,101650.0,101640.0,2.99708123]
[1734177812204,0.23081659,101650.0,101640.0,3.05805812]
[1734177812205,0.3782613,101650.0,101640.0,3.05805812]
[1734177812504,0.23081659,101650.0,101640.0,3.1011075]
[1734177813009,0.3782613,101650.0,101640.0,3.1011075]
[1734177813196,0.3782613,101650.0,101640.0,3.10112436]
[1734177813704,0.3146613,101650.0,101640.0,3.10112196]
[1734177814007,0.16721659,101650.0,101640.0,3.45309285]
[1734177814491,0.16721659,101650.0,101640.0,3.10112196]
[1734177815802,0.3146613,101650.0,101640.0,3.45309285]
[1734177816005,0.3146613,101650.0,101640.0,3.10112196]
[1734177816510,0.3146613,101650.0,101640.0,2.97916818]
[1734177816698,0.3146613,101650.0,101640.0,3.04014507]
[1734177817408,0.3146613,101650.0,101640.0,2.97916818]
[1734177817602,0.3146613,101650.0,101640.0,3.04014507]
[1734177819104,0.19662971,101650.0,101640.0,3.04014507]
[1734177820413,0.19662971,101650.0,101640.0,2.67934507]
[1734177820604,0.19662971,101650.0,101640.0,3.04014507]
[1734177821402,0.19662971,101650.0,101640.0,2.67934507]
[1734177821612,0.19662971,101650.0,101640.0,3.04014507]
[1734177822014,0.19662971,101650.0,101640.0,3.0407812]
[1734177822606,0.19662971,101650.0,101640.0,2.6799812]
[1734177822801,0.19662971,101650.0,101640.0,3.0407812]
[1734177823311,0.31465921,101650.0,101640.0,3.0407812]
[1734177823814,0.314657,101650.0,101640.0,3.0407812]
[1734177824322,0.314657,101650.0,101640.0,3.10175809]
[1734177826914,0.314657,101650.0,101640.0,3.0407812]
[1734177828010,0.19662971,101650.0,101640.0,3.0407812]
[1734177828209,0.19662971,101650.0,101640.0,3.04078249]
[1734177829215,0.19662971,101650.0,101640.0,2.99773182]
[1734177831016,0.19662971,101650.0,101640.0,2.99759699]
[1734177832013,0.19662971,101650.0,101640.0,2.63679699]
[1734177832207,0.19662971,101650.0,101640.0,2.99759699]
[1734177833811,0.19662971,101650.0,101640.0,3.04064845]
[1734177835407,0.19662971,101650.0,101640.0,3.04068744]
[1734177837324,0.19662971,101650.0,101640.0,2.67988744]
[1734177837513,0.3146634,101650.0,101640.0,3.04068744]
[1734177837710,0.19662971,101650.0,101640.0,3.04068744]
[1734177838207,0.31466288,101650.0,101640.0,3.04068744]
[1734177839917,0.19662971,101650.0,101640.0,3.04068744]
[1734177840821,0.31466989,101650.0,101640.0,3.04068744]
[1734177841414,0.19662971,101650.0,101640.0,3.04068744]
[1734177841617,0.31466952,101650.0,101640.0,3.04068744]
[1734177841816,0.16722481,101650.0,101640.0,2.99763598]
[1734177842218,0.16722481,101650.0,101640.0,3.04068507]
[1734177842418,0.16722481,101650.0,101640.0,2.99763598]
[1734177842921,0.16722481,101650.0,101640.0,1.43672675]
[1734177842922,0.31466952,101650.0,101640.0,1.43672675]
[1734177843226,0.31466952,101650.0,101640.0,1.02732049]
[1734177843227,0.19662971,101650.0,101640.0,1.02732049]
[1734177845616,0.19662971,101650.0,101640.0,0.97813049]
[1734177846418,0.79436434,101650.0,101640.0,0.61733049]
[1734177846618,0.79436434,101650.0,101640.0,0.89619876]
[1734177846927,0.73338745,101650.0,101640.0,0.89619876]
[1734177847313,0.73338745,101650.0,101640.0,0.89197093]
[1734177848023,0.73338745,101650.0,101640.0,0.83099404]
[1734177848228,0.79436434,101650.0,101640.0,0.83099404]
[1734177848525,1.00789652,101650.0,101640.0,0.45570141]
[1734177848724,0.94691963,101650.0,101640.0,0.35590141]
[1734177848930,0.77096189,101650.0,101640.0,0.17683314]
[1734177849120,0.97624592,101650.0,101640.0,0.17683314]
[1734177849321,0.97624592,101650.0,101630.0,1.81284993]
[1734177849527,0.72858488,101640.0,101630.0,0.21989284]
[1734177849827,0.68074709,101640.0,101630.0,0.21989284]
[1734177850021,0.2589702,101640.0,101630.0,0.64166973]
[1734177850227,0.6197702,101640.0,101630.0,0.28086973]
[1734177850429,0.76720099,101640.0,101630.0,0.28086973]
[1734177850726,0.40640099,101640.0,101630.0,0.28086973]
[1734177850924,0.76720099,101640.0,101630.0,0.28086973]
[1734177851628,0.82817788,101640.0,101630.0,0.28086973]
[1734177852018,0.86087788,101640.0,101630.0,0.28086973]
[1734177852223,0.68389768,101640.0,101630.0,0.23781003]
[1734177853724,0.68389768,101640.0,101630.0,0.17683314]
[1734177854627,0.62292079,101640.0,101630.0,0.17683314]
[1734177854833,0.68389768,101640.0,101630.0,0.17683314]
[1734177855436,0.32309768,101640.0,101630.0,0.17683314]
[1734177855728,0.32309768,101640.0,101630.0,0.04305804]
[1734177855729,0.68389768,101640.0,101630.0,0.04305804]
[1734177855927,0.44093482,101640.0,101630.0,0.21989118]
[1734177856124,0.68389768,101640.0,101630.0,0.21989118]
[1734177856320,0.68389768,101640.0,101630.0,0.04305804]
[1734177856529,0.68389768,101640.0,101630.0,0.21989118]
[1734177856831,0.50007788,101640.0,101630.0,0.04305804]
[1734177857029,0.86087788,101640.0,101630.0,0.04305804]
[1734177857429,0.68389768,101640.0,101630.0,0.04305804]
[1734177858025,0.68389768,101640.0,101620.0,2.14830703]
[1734177858026,0.049195,101630.0,101620.0,2.14830703]
[1734177858230,0.25538114,101630.0,101620.0,2.190867]
[1734177859232,0.31635803,101630.0,101620.0,2.08119311]
[1734177859437,0.31635803,101630.0,101620.0,0.58119311]
[1734177859834,0.31635803,101630.0,101620.0,2.08119311]
[1734177859835,0.34815803,101630.0,101620.0,2.08119311]
[1734177861336,0.34815803,101630.0,101620.0,2.08069311]
[1734177862831,0.34815803,101630.0,101620.0,1.71989311]
[1734177862832,0.70895803,101630.0,101620.0,1.71989311]
[1734177863628,0.76802333,101630.0,101620.0,1.54305997]
[1734177864538,0.76802333,101630.0,101620.0,1.5]
[1734177867036,0.76802333,101630.0,101620.0,1.67683314]
[1734177867546,0.73622333,101630.0,101620.0,1.67683314]
[1734177868337,0.73622333,101630.0,101620.0,1.5]
[1734177868533,0.73622333,101630.0,101620.0,1.67683314]
[1734177868731,0.37542333,101630.0,101620.0,1.67683314]
[1734177868936,0.58879254,101630.0,101620.0,1.67683314]
[1734177869342,0.67524644,101630.0,101620.0,1.73781003]
[1734177869537,0.16701565,101630.0,101620.0,1.78701003]
[1734177869938,0.31444644,101630.0,101620.0,1.78701003]
[1734177870135,0.16701565,101630.0,101620.0,1.78701003]
[1734177870347,0.31444644,101630.0,101620.0,1.78701003]
[1734177870738,0.31444644,101630.0,101620.0,1.61017689]
[1734177871343,0.31444644,101630.0,101620.0,1.78701003]
[1734177872040,0.31444644,101630.0,101620.0,1.72603314]
[1734177872245,0.16701565,101630.0,101620.0,2.08683314]
[1734177873352,0.16701565,101630.0,101620.0,2.12989315]
[1734177873650,0.16701565,101630.0,101620.0,2.25184693]
[1734177873834,0.255378,101630.0,101620.0,2.13601379]
[1734177874037,0.13755735,101630.0,101620.0,2.54542005]
[1734177874456,0.255378,101630.0,101620.0,3.09198898]
[1734177874750,0.13755735,101630.0,101620.0,3.15296587]
[1734177875343,0.255378,101630.0,101620.0,3.15296587]
[1734177876236,0.255378,101630.0,101620.0,3.1627095]
[1734177877049,0.255378,101630.0,101620.0,3.16270388]
[1734177888055,0.255378,101630.0,101620.0,2.80190388]
[1734177888253,0.255378,101630.0,101620.0,3.16270388]
[1734177895055,0.255378,101630.0,101620.0,3.16287588]
[1734177895450,0.16701565,101630.0,101620.0,3.16287588]
[1734177895950,0.25546123,101630.0,101620.0,3.16287588]
[1734177896156,0.16701565,101630.0,101620.0,3.16287588]
[1734177896657,0.25546876,101630.0,101620.0,3.16287588]
[1734177896858,0.16701565,101630.0,101620.0,3.16287588]
[1734177899956,0.16701565,101630.0,101620.0,3.04089899]
[1734177900357,0.31444644,101630.0,101620.0,3.04089899]
[1734177900563,0.16701565,101630.0,101620.0,3.04089899]
[1734177901455,0.31444644,101630.0,101620.0,3.04089899]
[1734177902663,0.31444644,101630.0,101620.0,3.04119139]
[1734177903458,0.19662579,101630.0,101620.0,3.04119139]
[1734177905353,0.19662579,101630.0,101620.0,2.63733138]
[1734177905760,0.19662579,101630.0,101620.0,2.99813138]
[1734177906064,0.19662579,101630.0,101620.0,3.04119008]
[1734177907554,0.19662579,101630.0,101620.0,2.68039008]
[1734177907762,0.19662579,101630.0,101620.0,3.04119008]
[1734177908068,0.19662579,101630.0,101620.0,2.68039008]
[1734177908265,0.25760268,101630.0,101620.0,2.61941319]
[1734177908469,0.28960268,101630.0,101620.0,2.61941319]
[1734177908671,0.28960268,101630.0,101620.0,2.14903004]
[1734177908970,0.28960268,101630.0,101620.0,2.38473371]
[1734177909266,0.28960268,101630.0,101620.0,2.14903004]
[1734177909460,0.28960268,101630.0,101620.0,1.83769614]
[1734177909864,0.28960268,101630.0,101620.0,1.82795251]
[1734177910473,0.28960268,101630.0,101620.0,1.77875251]
[1734177910863,0.46658288,101630.0,101620.0,1.77875251]
[1734177911972,0.67995209,101630.0,101620.0,1.9554996]
[1734177912360,0.82745632,101630.0,101620.0,1.9554996]
[1734177914372,0.83710373,101630.0,101620.0,1.9554996]
[1734177916364,0.83710373,101630.0,101620.0,1.71980579]
[1734177916564,0.83710373,101630.0,101620.0,1.9554996]
[1734177917161,0.83710373,101630.0,101620.0,1.71980579]
[1734177917769,0.47630373,101630.0,101620.0,1.71980579]
[1734177917974,0.83710373,101630.0,101620.0,1.71980579]
[1734177918475,0.77612684,101630.0,101620.0,1.71980579]
[1734177918770,0.83710373,101630.0,101620.0,1.71980579]
[1734177921574,0.77612684,101630.0,101620.0,1.71980579]
[1734177921775,0.83710373,101630.0,101620.0,1.71980579]
[1734177921970,0.47630373,101630.0,101620.0,1.9735196]
[1734177922178,0.29932353,101630.0,101620.0,1.9735196]
[1734177922381,0.47630373,101630.0,101620.0,1.9735196]
[1734177922669,0.83710373,101630.0,101620.0,1.9735196]
[1734177922872,0.47630373,101630.0,101620.0,1.9735196]
[1734177923078,0.29932353,101630.0,101620.0,1.9735196]
[1734177923269,0.47630373,101630.0,101620.0,1.9735196]
[1734177925867,0.49634414,101630.0,101620.0,1.9735196]
[1734177927173,0.47630373,101630.0,101620.0,1.9735196]
[1734177927373,0.44430373,101630.0,101620.0,1.9735196]
[1734177929369,0.44430373,101630.0,101620.0,1.79677251]
[1734177929370,0.26732353,101630.0,101620.0,1.79677251]
[1734177929577,0.26732353,101630.0,101620.0,1.75371381]
[1734177929773,0.26732353,101630.0,101620.0,1.80291381]
[1734177930078,0.26732353,101630.0,101620.0,1.83441381]
[1734177934577,0.26732353,101630.0,101620.0,0.52281413]
[1734177934578,0.44430373,101630.0,101620.0,0.52281413]
[1734177934775,0.44430373,101630.0,101620.0,0.47361413]
[1734177935284,0.44430373,101630.0,101620.0,1.97361413]
[1734177935474,0.44430373,101630.0,101620.0,1.79677607]
[1734177936870,0.44430373,101630.0,101620.0,1.82697607]
[1734177940977,0.2967995,101630.0,101620.0,1.79677607]
[1734177944788,0.2967995,101630.0,101620.0,1.97371701]
[1734177946782,0.2967995,101630.0,101620.0,1.79677607]
[1734177946990,0.2967995,101630.0,101620.0,1.97374756]
[1734177947386,0.2967995,101630.0,101620.0,1.79677607]
[1734177947577,0.2967995,101630.0,101620.0,1.97376316]
[1734177950991,0.2967995,101630.0,101620.0,1.79677607]
[1734177951380,0.71857639,101630.0,101620.0,0.47379681]
[1734177951587,0.74897639,101630.0,101620.0,0.47379681]
[1734177951787,0.57199619,101630.0,101620.0,0.238103]
[1734177951986,0.57199619,101630.0,101620.0,0.19504074]
[1734177952187,0.74911784,101630.0,101620.0,0.43073455]
[1734177952888,0.38831784,101630.0,101620.0,0.43073455]
[1734177953083,0.93279619,101630.0,101620.0,0.19504074]
[1734177953399,1.10986925,101630.0,101620.0,0.19504074]
[1734177955591,0.93279619,101630.0,101620.0,0.19504074]
[1734177955788,1.13808022,101630.0,101620.0,0.01802]
[1734177956188,0.93279619,101630.0,101620.0,0.01802]
[1734177959184,0.93279619,101630.0,101620.0,0.01852]
[1734177959387,0.0492,101620.0,101610.0,0.17702074]
[1734177959595,0.049205,101610.0,101600.0,1.94541455]
[1734177959896,0.049205,101610.0,101600.0,0.44541455]
[1734177959897,0.25758923,101610.0,101600.0,0.44541455]
[1734177960393,0.25758923,101610.0,101600.0,1.94541455]
[1734177960700,0.31856612,101610.0,101600.0,1.67702074]
[1734177960992,0.31856612,101610.0,101600.0,0.17702074]
[1734177960993,0.67936612,101610.0,101600.0,0.17702074]
[1734177961300,0.04921,101600.0,101590.0,0.17849707]
[1734177961489,0.71071212,101600.0,101590.0,0.17702074]
[1734177961690,0.71071212,101600.0,101580.0,0.44331455]
[1734177961691,0.049215,101590.0,101580.0,0.44331455]
[1734177961886,0.67931712,101590.0,101580.0,0.20762074]
[1734177962292,0.67931712,101590.0,101570.0,2.7438977]
[1734177962293,0.049219,101580.0,101570.0,2.7438977]
[1734177962505,0.37724158,101580.0,101570.0,2.7438977]
[1734177963292,0.25948798,101580.0,101570.0,2.50820389]
[1734177963500,0.25948798,101580.0,101570.0,2.55128551]
[1734177963997,0.28892638,101580.0,101570.0,2.14740389]
[1734177964197,0.37713385,101580.0,101570.0,1.67702074]
[1734177965290,0.25938025,101580.0,101570.0,1.5]
[1734177967001,0.19840336,101580.0,101570.0,1.5]
[1734177971704,0.11019589,101580.0,101570.0,1.5]
[1734177973301,0.11019589,101580.0,101570.0,1.56097689]
[1734177973302,0.049219,101580.0,101570.0,1.56097689]
[1734177973499,0.049219,101580.0,101570.0,1.97100089]
[1734177973701,0.049219,101580.0,101570.0,2.44138404]
[1734177974796,0.11019589,101580.0,101570.0,2.44138404]
[1734177975193,0.11019589,101580.0,101570.0,2.08058404]
[1734177975407,0.11019589,101580.0,101570.0,2.44138404]
[1734177976208,0.049219,101580.0,101570.0,2.44138404]
[1734177976403,0.049219,101580.0,101570.0,2.48446441]
[1734177976609,0.65738091,101600.0,101570.0,2.43524041]
[1734177976610,0.5692042,101600.0,101570.0,2.43524041]
[1734177976814,0.049218,101590.0,101580.0,0.17449589]
[1734177977101,0.049218,101590.0,101580.0,0.21757626]
[1734177977510,0.11019489,101590.0,101580.0,0.21757626]
[1734177978906,0.11019489,101590.0,101580.0,0.57837626]
[1734177979805,0.049218,101590.0,101580.0,0.60897626]
[1734177980003,0.049218,101590.0,101580.0,0.24817626]
[1734177980201,0.049218,101590.0,101580.0,0.60897626]
[1734177980512,0.049218,101590.0,101580.0,0.18719937]
[1734177981105,0.11019489,101590.0,101580.0,0.36422011]
[1734177981412,0.11019489,101590.0,101580.0,0.72502011]
[1734177982412,0.19840236,101590.0,101580.0,0.72502011]
[1734177983204,0.11019489,101590.0,101580.0,0.72502011]
[1734177983504,0.19840236,101590.0,101580.0,0.72502011]
[1734177983907,0.19840236,101590.0,101580.0,0.69442011]
[1734177984103,0.19840236,101590.0,101580.0,0.33362011]
[1734177984306,0.19840236,101590.0,101580.0,0.69442011]
[1734177984903,0.19840236,101590.0,101580.0,0.33362011]
[1734177985404,0.31615596,101590.0,101580.0,0.33362011]
[1734177987404,0.31665596,101590.0,101580.0,0.22010111]
[1734177987603,0.22844849,101590.0,101580.0,0.22010111]
[1734177987803,0.37579683,101590.0,101580.0,0.04308037]
[1734177988416,0.37579683,101590.0,101580.0,0.22010111]
[1734177988417,0.37529683,101590.0,101580.0,0.22010111]
[1734177989307,0.37579683,101590.0,101580.0,0.22010111]
[1734177990314,0.37529683,101590.0,101580.0,0.22010111]
[1734177991209,0.25754323,101590.0,101580.0,0.22010111]
[1734177991417,0.25804323,101590.0,101580.0,0.22010111]
[1734177992404,0.25754323,101590.0,101580.0,0.22010111]
[1734177993408,0.25804323,101590.0,101580.0,0.22010111]
[1734177997207,0.25804323,101590.0,101580.0,0.45579492]
[1734177999416,0.25804323,101590.0,101580.0,0.45629492]
[1734178002517,0.70935956,101590.0,101580.0,0.22060111]
[1734178004115,0.70935956,101590.0,101580.0,0.04358037]
[1734178007719,0.53247178,101590.0,101580.0,0.04358037]
[1734178007915,0.410518,101590.0,101580.0,0.04358037]
[1734178008116,0.53247178,101590.0,101580.0,0.04358037]
[1734178010128,0.70923267,101590.0,101580.0,0.04358037]
[1734178011628,0.53247178,101590.0,101580.0,0.04358037]
[1734178012021,0.70923068,101590.0,101580.0,0.04358037]
[1734178012536,0.53247178,101590.0,101580.0,0.04358037]
[1734178012926,0.17167178,101590.0,101580.0,0.04358037]
[1734178013129,0.53247178,101590.0,101580.0,0.04358037]
[1734178014526,0.73775581,101590.0,101580.0,0.0005]
[1734178014730,0.049224,101570.0,101560.0,0.17714504]
[1734178015028,0.79502739,101570.0,101560.0,0.04321456]
[1734178015231,0.74580339,101570.0,101560.0,0.23562468]
[1734178015530,0.79502739,101570.0,101560.0,0.23562468]
[1734178016127,0.79502739,101570.0,101560.0,0.05860394]
[1734178017042,0.61828566,101570.0,101560.0,0.2202353]
[1734178018536,0.61828566,101570.0,101560.0,0.2855353]
[1734178018734,0.19650877,101570.0,101560.0,0.39574119]
[1734178018930,0.16698925,101570.0,101560.0,1.49391815]
[1734178019235,0.2553156,101570.0,101560.0,1.31689741]
[1734178019634,0.31629249,101570.0,101560.0,1.25592052]
[1734178020037,0.31629249,101570.0,101560.0,0.89512052]
[1734178020235,0.31629249,101570.0,101560.0,1.25592052]
[1734178020542,0.2553156,101570.0,101560.0,1.31689741]
[1734178022133,0.2553156,101570.0,101560.0,2.81689741]
[1734178023939,0.2553156,101570.0,101560.0,2.82686402]
[1734178024239,0.2553156,101570.0,101560.0,1.32686402]
[1734178025332,0.2553156,101570.0,101560.0,1.32736402]
[1734178025528,0.08832635,101570.0,101560.0,1.69944826]
[1734178028436,0.2558136,101580.0,101570.0,0.049224]
[1734178028637,0.2558136,101580.0,101570.0,0.74996784]
[1734178029038,0.2558136,101580.0,101570.0,1.22035099]
[1734178029243,0.2558136,101580.0,101570.0,1.51401082]
[1734178029437,0.2553136,101580.0,101570.0,1.51401082]
[1734178030441,0.2558136,101580.0,101570.0,1.51401082]
[1734178031241,0.2558136,101580.0,101570.0,1.76700805]
[1734178031443,0.2553136,101580.0,101570.0,1.76700805]
[1734178031741,0.2553136,101580.0,101570.0,1.51401082]